fUSD/lending_fUSD_20251204
["ID","MTS","AMOUNT","RATE_DAILY","PERIOD"]
[396213102,1764814241089,-208.45126976,0.00016173,2]
[396213103,1764814241100,-3774.0,0.00016173,2]
[396213104,1764814241110,-150.0,0.00016173,2]
[396213105,1764814241120,-500.0,0.00016173,2]
[396213106,1764814241130,-256.59661348,0.00016173,2]
[396213107,1764814241139,-500.0,0.00016173,2]
[396213108,1764814241148,-500.0,0.00016173,2]
[396213109,1764814241157,-500.0,0.00016173,2]
[396213110,1764814241167,-150.0,0.00016173,2]
[396213111,1764814241178,-500.0,0.00016173,2]
[396213112,1764814241190,-150.0,0.00016173,2]
[396213113,1764814241199,-291.76259641,0.00016173,2]
[396213114,1764814241208,-204.00637906,0.00016173,2]
[396213115,1764814241218,-1523.6,0.00016173,2]
[396213116,1764814241229,-225.9,0.00016205,2]
[396213117,1764814241239,-1000.0,0.00016209,2]
[396213118,1764814241247,-3774.0,0.0001631,2]
[396213119,1764814241257,-150.0,0.0001631,2]
[396213120,1764814241267,-500.0,0.0001631,2]
[396213121,1764814241276,-500.0,0.0001631,2]
[396213122,1764814241286,-607.5468066,0.0001631,2]
[396213123,1764814241295,-578.94802614,0.0001631,2]
[396213124,1764814241305,-150.0,0.0001631,2]
[396213125,1764814241314,-500.0,0.0001631,2]
[396213126,1764814241323,-150.0,0.0001631,2]
[396213127,1764814241333,-1600.0,0.00016361,2]
[396213128,1764814241342,-500.0,0.00016421,2]
[396213129,1764814241351,-501.83517935,0.00016421,2]
[396213130,1764814241360,-500.0,0.00016438,2]
[396213131,1764814241370,-15969.67,0.00016438,2]
[396213132,1764814241380,-518.5,0.00016438,2]
[396213133,1764814241390,-3774.0,0.00016447,2]
[396213134,1764814241399,-152.02518252,0.00016447,2]
[396213135,1764814241409,-500.0,0.00016447,2]
[396213136,1764814241418,-160.30255927,0.00016447,2]
[396213137,1764814241427,-150.0,0.00016447,2]
[396213138,1764814241436,-500.0,0.00016447,2]
[396213139,1764814241445,-265.01712022,0.00016447,2]
[396213140,1764814241454,-1523.6,0.00016447,2]
[396213141,1764814241463,-537.6845,0.00016493,2]
[396213142,1764814241473,-557.5788265,0.00016548,2]
[396213143,1764814241483,-500.0,0.00016575,2]
[396213144,1764814241491,-3774.0,0.00016584,2]
[396213145,1764814241500,-366.23798276,0.00016584,2]
[396213146,1764814241509,-201.44591919,0.00016584,2]
[396213147,1764814241518,-500.0,0.00016584,2]
[396213148,1764814241527,-578.20924308,0.00016603,2]
[396213149,1764814241536,-381.6796646,0.00016658,2]
[396213150,1764814241545,-634.68642272,0.00016712,2]
[396213151,1764814241555,-3774.0,0.00016721,2]
[396213152,1764814241563,-510.31429567,0.00016721,2]
[396213153,1764814241572,-1523.6,0.00016721,2]
[396213154,1764814241582,-3774.0,0.00016858,2]
[396213155,1764814241591,-345.62615766,0.00016887,2]
[396213156,1764814241600,-309.19668379,0.00016887,2]
[396213157,1764814241609,-389.49227043,0.000169,2]
[396213158,1764814241618,-196.06245681,0.000169,2]
[396213159,1764814241627,-296.9886399,0.000169,2]
[396213160,1764814241636,-10000.0,0.000169,2]
[396213161,1764814241645,-500.0,0.00016921,2]
[396213162,1764814241654,-500.0,0.00016935,2]
[396213163,1764814241662,-164.71510757,0.00016973,2]
[396213164,1764814241671,-500.0,0.00016973,2]
[396213165,1764814241680,-500.0,0.00016973,2]
[396213166,1764814241688,-500.0,0.00016973,2]
[396213167,1764814241697,-500.0,0.00016973,2]
[396213168,1764814241706,-500.0,0.00016973,2]
[396213169,1764814241716,-285.16846141,0.00016973,2]
[396213170,1764814241725,-649.32363297,0.00016973,2]
[396213171,1764814241735,-500.0,0.00016973,2]
[396213172,1764814241744,-3774.0,0.00016995,2]
[396213173,1764814241753,-1523.6,0.00016995,2]
[396213174,1764814241763,-500.0,0.00016997,2]
[396213175,1764814241772,-500.0,0.00016999,2]
[396213176,1764814241782,-501.84138354,0.00016999,2]
[396213177,1764814241792,-500.0,0.00016999,2]
[396213178,1764814241801,-510.4847934,0.00016999,2]
[396213179,1764814241810,-286.56625261,0.00016999,2]
[396213180,1764814241820,-160.37135465,0.00016999,2]
[396213181,1764814241829,-500.0,0.00016999,2]
[396213182,1764814241839,-449.6369887,0.00016999,2]
[396213183,1764814241849,-1816945.47612616,0.00017,2]
[396213184,1764814241858,-2000.0,0.00017,2]
[396213185,1764814241867,-3392.7378467,0.00017,2]
[396213186,1764814241877,-294254.1189847,0.00017,2]
[396213187,1764814241887,-1038.8353509,0.00017,2]
[396213188,1764814241897,-250.0,0.00017,2]
[396213189,1764814241906,-319.83980646,0.00017,2]
[396213190,1764814241916,-151.0,0.00017,2]
[396213191,1764814241925,-508.0,0.00017018,2]
[396213192,1764814241935,-225.9,0.00017058,2]
[396213193,1764814241945,-3774.0,0.00017132,2]
[396213194,1764814241954,-3774.0,0.00017269,2]
[396213195,1764814241963,-1523.6,0.00017269,2]
[396213196,1764814241973,-166.66,0.00017293,2]
[396213197,1764814241982,-936.0,0.00017363,2]
[396213198,1764814241991,-3774.0,0.00017406,2]
[396213199,1764814242001,-202.60112259,0.00017419,2]
[396213200,1764814242011,-1000.0,0.00017521,2]
[396213201,1764814242020,-1000.0,0.00017521,2]
[396213202,1764814242029,-1000.0,0.00017521,2]
[396213203,1764814242039,-1081.3686148,0.00017521,2]
[396213204,1764814242048,-1000.0,0.00017521,2]
[396213205,1764814242057,-1000.0,0.00017521,2]
[396213206,1764814242067,-3774.0,0.00017543,2]
[396213207,1764814242076,-1523.6,0.00017543,2]
[396213208,1764814242085,-4945.30306302,0.00017589,2]
[396213209,1764814242095,-3774.0,0.0001768,2]
[396213210,1764814242104,-154.64189935,0.00017808,2]
[396213211,1764814242113,-621.64,0.0001781,2]
[396213212,1764814242122,-166.66,0.00017813,2]
[396213213,1764814242131,-3774.0,0.00017817,2]
[396213214,1764814242140,-1523.6,0.00017817,2]
[396213215,1764814242149,-225.9,0.00017911,2]
[396213216,1764814242159,-3774.0,0.00017954,2]
[396213217,1764814242168,-26805.9935227,0.00018,2]
[396213218,1764814242182,-887.12527803,0.00018,2]
[396213219,1764814242195,-1183.29785971,0.00018,2]
[396213220,1764814242205,-1500.0,0.00018068,2]
[396213221,1764814242215,-866.20942174,0.00018068,2]
[396213222,1764814242225,-334.77414926,0.00018068,2]
[396213223,1764814242234,-1505.82554955,0.00018068,2]
[396213224,1764814242244,-1500.0,0.00018068,2]
[396213225,1764814242254,-250.41409853,0.00018069,2]
[396213226,1764814242266,-1000.0,0.00018082,2]
[396213227,1764814242276,-3774.0,0.00018091,2]
[396213228,1764814242286,-1523.6,0.00018091,2]
[396213229,1764814242295,-521.12945876,0.00018099,2]
[396213230,1764814242304,-1768.72037433,0.000181,2]
[396213231,1764814242314,-3774.0,0.00018228,2]
[396213232,1764814242323,-1000.0,0.00018286,2]
[396213233,1764814242333,-166.66,0.00018332,2]
[396213234,1764814242342,-150.0,0.00018356,2]
[396213235,1764814242351,-87951.59,0.00018356,2]
[396213236,1764814242361,-3774.0,0.00018365,2]
[396213237,1764814242371,-1523.6,0.00018365,2]
[396213238,1764814242384,-1600.0,0.00018406,2]
[396213239,1764814242394,-150.86420125,0.00018493,2]
[396213240,1764814242404,-3774.0,0.00018502,2]
[396213241,1764814242413,-2098.94895177,0.00018616,2]
[396213242,1764814242423,-1512.92196681,0.00018616,2]
[396213243,1764814242433,-3774.0,0.00018639,2]
[396213244,1764814242442,-1523.6,0.00018639,2]
[396213245,1764814242452,-500.0,0.0001874,2]
[396213246,1764814242462,-1000.0,0.0001876,2]
[396213247,1764814242472,-225.9,0.00018763,2]
[396213248,1764814242481,-3774.0,0.00018776,2]
[396213249,1764814242491,-150.8,0.000188,2]
[396213250,1764814242500,-150.8,0.000188,2]
[396213251,1764814242509,-150.8,0.000188,2]
[396213252,1764814242519,-150.8,0.000188,2]
[396213253,1764814242529,-150.8,0.000188,2]
[396213254,1764814242538,-150.8,0.000188,2]
[396213255,1764814242548,-150.8,0.000188,2]
[396213256,1764814242559,-150.8,0.000188,2]
[396213257,1764814242568,-150.8,0.000188,2]
[396213258,1764814242581,-150.8,0.000188,2]
[396213259,1764814242591,-150.8,0.000188,2]
[396213260,1764814242601,-150.8,0.000188,2]
[396213261,1764814242610,-150.8,0.000188,2]
[396213262,1764814242620,-150.8,0.000188,2]
[396213263,1764814242629,-150.8,0.000188,2]
[396213264,1764814242638,-3774.0,0.00018913,2]
[396213265,1764814242649,-1523.6,0.00018913,2]
[396213266,1764814242659,-150.8,0.0001899,2]
[396213267,1764814242668,-5138.75982196,0.00019,2]
[396213268,1764814242678,-6393.80349328,0.00019,2]
[396213269,1764814242688,-163.95588011,0.00019,2]
[396213270,1764814242698,-300.0,0.00019,2]
[396213271,1764814242707,-811.90236964,0.00019,2]
[396213272,1764814242717,-3797.6414377,0.0001905,2]
[396213273,1764814242726,-3008.5532171,0.00019178,2]
[396213274,1764814242736,-20029.33,0.00019178,2]
[396213275,1764814242746,-151.0,0.00019178,2]
[396213276,1764814242756,-189.6464512,0.00019178,2]
[396213277,1764814242765,-151.0,0.00019178,2]
[396213278,1764814242778,-151.0,0.00019178,2]
[396213279,1764814242788,-1523.6,0.00019187,2]
[396213280,1764814242798,-4945.30306302,0.00019378,2]
[396213281,1764814242808,-1000.0,0.00019438,2]
[396213283,1764814242818,-1523.6,0.00019461,2]
[396213285,1764814242828,-150.8,0.00019545,2]
[396213286,1764814242839,-65656.9686933,0.00019553,2]
[396213287,1764814242848,-61909.041545,0.00019555,2]
[396213288,1764814242858,-225.9,0.00019616,2]
[396213289,1764814242868,-177.3242274,0.00019671,2]
[396213290,1764814242878,-1523.6,0.00019735,2]
[396213291,1764814242890,-296.98863985,0.000199,2]
[396213292,1764814242900,-150.8,0.0001999,2]
[396213293,1764814242910,-10860.66841868,0.0002,2]
[396213294,1764814242919,-3950.0,0.0002,2]
[396213295,1764814242929,-7250.56256434,0.0002,2]
[396213296,1764814242938,-1287.54280394,0.0002,2]
[396213297,1764814242947,-1039.26148696,0.0002,2]
[396213298,1764814242956,-2848.00369775,0.0002,2]
[396213299,1764814242966,-414.46630369,0.0002,2]
[396213300,1764814242979,-12855.32736228,0.0002,2]
[396213301,1764814242988,-73607.70844627,0.0002,2]
[396213302,1764814242997,-461.017,0.0002,2]
[396213303,1764814243006,-1000.0,0.0002,2]
[396213304,1764814243015,-5000.00636558,0.0002,2]
[396213305,1764814243025,-1523.70030323,0.00020008,2]
[396213306,1764814243034,-8720.0,0.0002001,2]
[396213307,1764814243044,-168.9144711,0.0002008,2]
[396213308,1764814243055,-150.8,0.00020115,2]
[396213309,1764814243064,-1000.0,0.00020116,2]
[396213310,1764814243074,-14650.0499394,0.00020122,2]
[396213311,1764814243083,-13813.7743545,0.00020126,2]
[396213312,1764814243092,-500.1,0.00020187,2]
[396213313,1764814243102,-1000.0,0.00020318,2]
[396213314,1764814243111,-1600.0,0.00020452,2]
[396213315,1764814243120,-225.9,0.00020469,2]
[396213316,1764814243130,-151.0,0.00020548,2]
[396213317,1764814243139,-151.0,0.00020548,2]
[396213318,1764814243148,-2000.0,0.000207,2]
[396213319,1764814243158,-1000.0,0.00020795,2]
[396213320,1764814243171,-167.49,0.00021,2]
[396213321,1764814243181,-350.0,0.00021,2]
[396213322,1764814243193,-389.49227043,0.00021025,2]
[396213323,1764814243205,-4945.30306302,0.00021167,2]
[396213324,1764814243215,-514.29759903,0.00021191,2]
[396213325,1764814243225,-2010.09339655,0.000212,2]
[396213326,1764814243235,-225.9,0.00021322,2]
[396213327,1764814243245,-5000.0,0.00021918,2]
[396213328,1764814243262,-1250.33,0.0002217,2]
[396213330,1764814243276,-225.9,0.00022175,2]
[396213331,1764814243285,-1000.0,0.00022349,2]
[396213332,1764814243295,-1006.76,0.000224,7]
[396213333,1764814243305,-1600.0,0.00022497,2]
[396213334,1764814243314,-296.98863985,0.000229,2]
[396213335,1764814243325,-4945.30306302,0.00022956,2]
[396213336,1764814243335,-400.0,0.00023,2]
[396213337,1764814243344,-225.9,0.00023028,2]
[396213338,1764814243355,-150.8,0.00023264,2]
[396213339,1764814243364,-182.053965,0.00023274,2]
[396213345,1764814243374,-166.909594,0.00023274,2]
[396213346,1764814243595,-151.0,0.00023274,2]
[396213347,1764814243604,-159.9704,0.00023274,2]
[396213348,1764814243614,-151.0,0.00023274,2]
[396213349,1764814243624,-203.83407914,0.00023274,2]
[396213350,1764814243634,-160.46314664,0.00023274,2]
[396213351,1764814243644,-500.0,0.00023274,2]
[396213352,1764814243654,-277.35679052,0.00023274,2]
[396213353,1764814243664,-574.12855637,0.00023274,2]
[396213354,1764814243675,-500.0,0.00023274,2]
[396213355,1764814243685,-500.0,0.00023274,2]
[396213356,1764814243695,-209.40437684,0.00023274,2]
[396213357,1764814243705,-500.0,0.00023274,2]
[396213358,1764814243715,-500.0,0.00023274,2]
[396213359,1764814243724,-500.0,0.00023274,2]
[396213360,1764814243734,-500.0,0.00023274,2]
[396213361,1764814243743,-500.0,0.00023274,2]
[396213362,1764814243753,-500.0,0.00023274,2]
[396213363,1764814243763,-500.0,0.00023274,2]
[396213364,1764814243773,-500.0,0.00023274,2]
[396213365,1764814243783,-250.0,0.00023274,2]
[396213366,1764814243792,-500.0,0.00023274,2]
[396213367,1764814243802,-500.0,0.00023274,2]
[396213368,1764814243812,-250.0,0.00023274,2]
[396213369,1764814243822,-151.0,0.00023274,2]
[396213370,1764814243832,-500.0,0.00023274,2]
[396213371,1764814243841,-500.0,0.00023274,2]
[396213372,1764814243851,-250.0,0.00023274,2]
[396213373,1764814243860,-500.0,0.00023274,2]
[396213374,1764814243870,-500.0,0.00023274,2]
[396213375,1764814243880,-250.0,0.00023274,2]
[396213376,1764814243889,-500.0,0.00023274,2]
[396213377,1764814243898,-500.0,0.00023274,2]
[396213378,1764814243908,-250.0,0.00023274,2]
[396213379,1764814243917,-500.0,0.00023274,2]
[396213380,1764814243927,-500.0,0.00023274,2]
[396213381,1764814243937,-250.0,0.00023274,2]
[396213382,1764814243946,-2000.0,0.00023274,2]
[396213383,1764814243956,-510.01989463,0.00023274,2]
[396213384,1764814243966,-250.0,0.00023274,2]
[396213385,1764814243975,-2000.0,0.00023274,2]
[396213386,1764814243985,-151.0,0.00023274,2]
[396213387,1764814243994,-250.0,0.00023274,2]
[396213388,1764814244004,-2000.0,0.00023274,2]
[396213389,1764814244012,-250.0,0.00023274,2]
[396213390,1764814244022,-2000.0,0.00023274,2]
[396213391,1764814244031,-250.0,0.00023274,2]
[396213392,1764814244040,-2000.0,0.00023274,2]
[396213393,1764814244050,-151.0,0.00023274,2]
[396213394,1764814244059,-251.91646431,0.00023274,2]
[396213395,1764814244069,-2000.0,0.00023274,2]
[396213396,1764814244078,-156.587,0.00023274,2]
[396213397,1764814244087,-2000.0,0.00023274,2]
[396213398,1764814244096,-162.380719,0.00023274,2]
[396213399,1764814244105,-2000.0,0.00023274,2]
[396213400,1764814244115,-584.91647084,0.00023274,2]
[396213401,1764814244124,-151.79314906,0.00023274,2]
[396213402,1764814244133,-2000.0,0.00023274,2]
[396213403,1764814244143,-2000.0,0.00023274,2]
[396213404,1764814244151,-2000.0,0.00023274,2]
[396213405,1764814244160,-220.0,0.00023274,2]
[396213406,1764814244170,-220.0,0.00023274,2]
[396213407,1764814244179,-230.49226524,0.00023274,2]
[396213408,1764814244190,-1000.0,0.00023274,2]
[396213409,1764814244199,-1000.0,0.00023274,2]
[396213410,1764814244209,-1000.0,0.00023274,2]
[396213411,1764814244218,-1000.0,0.00023274,2]
[396213412,1764814244228,-1000.0,0.00023274,2]
[396213413,1764814244238,-1000.0,0.00023274,2]
[396213414,1764814244247,-1000.0,0.00023274,2]
[396213415,1764814244256,-1000.0,0.00023274,2]
[396213416,1764814244266,-1000.0,0.00023274,2]
[396213417,1764814244275,-1000.0,0.00023274,2]
[396213418,1764814244285,-1000.0,0.00023274,2]
[396213419,1764814244294,-1000.0,0.00023274,2]
[396213420,1764814244305,-1000.0,0.00023274,2]
[396213421,1764814244315,-1000.0,0.00023274,2]
[396213422,1764814244325,-1000.0,0.00023274,2]
[396213423,1764814244334,-1000.0,0.00023274,2]
[396213424,1764814244344,-397.54712625,0.00023274,2]
[396213425,1764814244353,-1000.0,0.00023274,2]
[396213426,1764814244363,-1000.0,0.00023274,2]
[396213427,1764814244373,-1000.0,0.00023274,2]
[396213428,1764814244382,-500.0,0.00023274,2]
[396213429,1764814244392,-1000.0,0.00023274,2]
[396213430,1764814244401,-1000.0,0.00023274,2]
[396213431,1764814244411,-500.0,0.00023274,2]
[396213432,1764814244420,-1000.0,0.00023274,2]
[396213433,1764814244429,-500.0,0.00023274,2]
[396213434,1764814244439,-1000.0,0.00023274,2]
[396213435,1764814244448,-500.0,0.00023274,2]
[396213436,1764814244457,-500.0,0.00023274,2]
[396213437,1764814244467,-1000.0,0.00023274,2]
[396213438,1764814244476,-250.0,0.00023274,2]
[396213439,1764814244485,-500.0,0.00023274,2]
[396213440,1764814244494,-1000.0,0.00023274,2]
[396213441,1764814244503,-500.0,0.00023274,2]
[396213442,1764814244512,-250.0,0.00023274,2]
[396213443,1764814244521,-620.0,0.00023274,2]
[396213444,1764814244531,-500.0,0.00023274,2]
[396213445,1764814244540,-1000.0,0.00023274,2]
[396213446,1764814244549,-500.0,0.00023274,2]
[396213447,1764814244559,-319.4682898,0.00023274,2]
[396213448,1764814244568,-500.0,0.00023274,2]
[396213449,1764814244578,-500.0,0.00023274,2]
[396213450,1764814244587,-1000.0,0.00023274,2]
[396213451,1764814244596,-500.0,0.00023274,2]
[396213452,1764814244606,-500.0,0.00023274,2]
[396213453,1764814244615,-500.0,0.00023274,2]
[396213454,1764814244624,-500.0,0.00023274,2]
[396213455,1764814244634,-1000.0,0.00023274,2]
[396213456,1764814244643,-500.0,0.00023274,2]
[396213457,1764814244652,-500.0,0.00023274,2]
[396213458,1764814244662,-500.0,0.00023274,2]
[396213459,1764814244671,-1006.10006845,0.00023274,2]
[396213460,1764814244681,-500.0,0.00023274,2]
[396213461,1764814244690,-500.0,0.00023274,2]
[396213462,1764814244699,-500.0,0.00023274,2]
[396213463,1764814244708,-500.0,0.00023274,2]
[396213464,1764814244718,-500.0,0.00023274,2]
[396213465,1764814244730,-500.0,0.00023274,2]
[396213466,1764814244740,-500.0,0.00023274,2]
[396213467,1764814244750,-500.0,0.00023274,2]
[396213468,1764814244759,-500.0,0.00023274,2]
[396213469,1764814244768,-500.0,0.00023274,2]
[396213470,1764814244778,-500.0,0.00023274,2]
[396213471,1764814244787,-500.0,0.00023274,2]
[396213472,1764814244797,-151.0,0.00023274,2]
[396213473,1764814244806,-500.0,0.00023274,2]
[396213474,1764814244815,-500.0,0.00023274,2]
[396213475,1764814244825,-508.75667085,0.00023274,2]
[396213476,1764814244834,-300.0,0.00023274,2]
[396213477,1764814244843,-151.0,0.00023274,2]
[396213478,1764814244854,-4000.0,0.00023274,2]
[396213479,1764814244863,-4000.0,0.00023274,2]
[396213480,1764814244872,-4000.0,0.00023274,2]
[396213481,1764814244883,-4000.0,0.00023274,2]
[396213482,1764814244892,-4000.0,0.00023274,2]
[396213483,1764814244901,-4000.0,0.00023274,2]
[396213484,1764814244910,-4000.0,0.00023274,2]
[396213485,1764814244920,-4000.0,0.00023274,2]
[396213486,1764814244930,-4000.0,0.00023274,2]
[396213487,1764814244939,-4000.0,0.00023274,2]
[396213488,1764814244949,-4068.27367881,0.00023274,2]
[396213489,1764814244959,-151.0,0.00023274,2]
[396213490,1764814244969,-150.75,0.00023575,2]
[396213491,1764814244978,-1193.67,0.0002364,2]
[396213492,1764814244987,-500.0,0.0002373,2]
[396213493,1764814244996,-595.37131296,0.00023822,2]
[396213494,1764814245006,-335.66906054,0.00023822,2]
[396213495,1764814245015,-151.0,0.00023822,2]
[396213496,1764814245024,-1000.0,0.00023822,2]
[396213497,1764814245033,-151.0,0.00023822,2]
[396213498,1764814245043,-151.0,0.00023822,2]
[396213499,1764814245052,-598.22205166,0.0002437,2]
[396213500,1764814245061,-152.03252851,0.0002437,2]
[396213501,1764814245071,-1000.0,0.0002437,2]
[396213502,1764814245081,-151.0,0.0002437,2]
[396213503,1764814245091,-151.0,0.0002437,2]
[396213504,1764814245100,-1000.0,0.00024381,2]
[396213505,1764814245110,-2000.0,0.000244,2]
[396213506,1764814245119,-196.06245681,0.000244,2]
[396213507,1764814245129,-1600.0,0.00024542,2]
[396213508,1764814245138,-287.61899177,0.00024643,2]
[396213509,1764814245147,-151.23726078,0.00024643,2]
[396213510,1764814245157,-628.35238982,0.00024643,2]
[396213511,1764814245166,-311.1,0.00024643,2]
[396213512,1764814245178,-1000.0,0.00024658,2]
[396213513,1764814245189,-244.26,0.00024658,2]
[396213514,1764814245199,-461.43,0.00024658,30]
[396213515,1764814245208,-500.0,0.00024658,2]
[396213516,1764814245219,-500.0,0.00024658,2]
[396213517,1764814245228,-500.0,0.00024658,2]
[396213518,1764814245238,-500.0,0.00024658,2]
[396213519,1764814245248,-500.0,0.00024658,2]
[396213520,1764814245258,-500.0,0.00024658,2]
[396213521,1764814245270,-500.0,0.00024658,2]
[396213522,1764814245280,-500.0,0.00024658,2]
[396213523,1764814245290,-500.0,0.00024658,2]
[396213524,1764814245299,-500.0,0.00024658,2]
[396213525,1764814245308,-500.0,0.00024658,2]
[396213526,1764814245318,-500.0,0.00024658,2]
[396213527,1764814245328,-500.0,0.00024658,2]
[396213528,1764814245337,-500.0,0.00024658,2]
[396213529,1764814245347,-500.0,0.00024658,2]
[396213530,1764814245356,-500.0,0.00024658,2]
[396213531,1764814245368,-500.0,0.00024658,2]
[396213532,1764814245377,-500.0,0.00024658,2]
[396213533,1764814245386,-500.0,0.00024658,2]
[396213534,1764814245395,-500.0,0.00024658,2]
[396213535,1764814245404,-500.0,0.00024658,2]
[396213536,1764814245414,-611.31793572,0.00024658,2]
[396213537,1764814245423,-500.0,0.00024658,2]
[396213538,1764814245433,-500.0,0.00024658,2]
[396213539,1764814245443,-500.0,0.00024658,2]
[396213540,1764814245452,-500.0,0.00024658,2]
[396213541,1764814245461,-500.0,0.00024658,2]
[396213542,1764814245471,-500.0,0.00024658,2]
[396213543,1764814245480,-500.0,0.00024658,2]
[396213544,1764814245490,-500.0,0.00024658,2]
[396213545,1764814245499,-500.0,0.00024658,2]
[396213546,1764814245509,-500.0,0.00024658,2]
[396213547,1764814245518,-4945.30306302,0.00024744,2]
[396213548,1764814245527,-167.41,0.000248,3]
[396213549,1764814245536,-520.22139624,0.000248,3]
[396213550,1764814245546,-1000.0,0.00024918,2]
[396213551,1764814245555,-151.95598673,0.00024918,2]
[396213552,1764814245564,-151.0,0.00024918,2]
[396213553,1764814245575,-68990.57900959,0.00025,2]
[396213554,1764814245584,-389.49227043,0.00025151,2]
[396213555,1764814245594,-1000.0,0.00025466,2]
[396213556,1764814245604,-153.24536797,0.00025466,2]
[396213557,1764814245615,-341.2,0.00025769,14]
[396213558,1764814245625,-504.78717138,0.00025856,7]
[396213559,1764814245634,-1006.76,0.000259,7]
[396213560,1764814245646,-296.98863985,0.000259,2]
[396213561,1764814245658,-298.26089446,0.00026012,2]
[396213562,1764814245668,-322.6107,0.00026012,2]
[396213563,1764814245678,-152.94900919,0.00026013,2]
[396213564,1764814245689,-1000.0,0.00026014,2]
[396213565,1764814245702,-4945.30306302,0.00026533,2]
[396213566,1764814245714,-1000.0,0.00026562,2]
[396213567,1764814245723,-500.0,0.00026606,7]
[396213568,1764814245732,-500.1,0.00026676,2]
[396213569,1764814245744,-9144.0,0.000269,2]
[396213570,1764814245753,-161.0,0.00027,14]
[396213571,1764814245763,-1000.0,0.0002711,2]
[396213572,1764814245772,-500.0,0.00027181,7]
[396213573,1764814245782,-150.0,0.00027369,2]
[396213574,1764814245791,-309.29654756,0.00027381,2]
[396213575,1764814245800,-334.5472959,0.00027381,2]
[396213576,1764814245809,-300.0,0.00027397,2]
[396213577,1764814245819,-244.26,0.00027397,2]
[396213578,1764814245828,-1435.71,0.00027397,2]
[396213579,1764814245837,-500.0,0.00027397,14]
[396213580,1764814245847,-2174.82,0.000274,2]
[396213581,1764814245856,-2174.82,0.000274,2]
[396213582,1764814245866,-2174.82,0.000274,2]
[396213583,1764814245875,-2174.82,0.000274,2]
[396213584,1764814245885,-2174.82,0.000274,2]
[396213585,1764814245895,-1000.0,0.00027658,2]
[396213586,1764814245904,-4340.28,0.00028014,2]
[396213587,1764814245914,-2000.0,0.000281,2]
[396213588,1764814245923,-1000.0,0.00028206,2]
[396213589,1764814245974,-150.75,0.00028238,2]
[396213590,1764814245985,-4945.30306302,0.00028322,2]
[396213591,1764814245994,-175.70054234,0.00028741,30]
[396213592,1764814246003,-320.74051982,0.0002875,2]
[396213593,1764814246013,-463.07306804,0.0002875,2]
[396213594,1764814246022,-151.0,0.00028754,7]
[396213595,1764814246031,-1000.0,0.00028754,2]
[396213596,1764814246040,-296.98863985,0.000289,2]
[396213597,1764814246049,-389.49227043,0.00029276,2]
[396213598,1764814246058,-461.43,0.00029704,30]
[396213599,1764814246067,-4945.30306302,0.00030111,2]
[396213600,1764814246077,-332.60791905,0.00030119,2]
[396213601,1764814246086,-244.26,0.00030137,2]
[396213602,1764814246095,-1006.76,0.000308,7]
[396213603,1764814246106,-173.93042821,0.00031296,120]
[396213604,1764814246118,-344.91441206,0.00031488,2]
[396213605,1764814246128,-165.0,0.000315,120]
[396213606,1764814246137,-1200.0,0.00031748,4]
[396213607,1764814246147,-1000.0,0.000318,30]
[396213608,1764814246157,-2000.0,0.000318,2]
[396213609,1764814246166,-196.06245681,0.000319,2]